bitfinex/quotes_BTCUSD_20250313
["timestamp","ask_amount","ask_price","bid_price","bid_amount"]
[1741882396077,0.0946008,81077.0,81076.0,0.000169]
[1741882396682,0.10591875,81077.0,81076.0,0.000169]
[1741882396939,0.10591875,81077.0,81076.0,0.001169]
[1741882397170,0.10591875,81077.0,81076.0,0.002169]
[1741882397541,0.012334,81074.0,81068.0,0.012335]
[1741882397754,0.09358575,81077.0,81075.0,0.259016]
[1741882397906,0.07016425,81077.0,81076.0,0.012334]
[1741882398111,0.07016425,81077.0,81075.0,0.259016]
[1741882398545,0.259041,81068.0,81059.0,0.012336]
[1741882398721,0.07016425,81077.0,81075.0,0.259018]
[1741882398926,0.07016425,81077.0,81072.0,0.246694]
[1741882399124,0.246684,81076.0,81068.0,0.012335]
[1741882399372,0.246713,81066.0,81063.0,0.78328]
[1741882399522,0.246713,81066.0,81062.0,0.000169]
[1741882399523,0.259057,81063.0,81062.0,0.000169]
[1741882399737,0.305557,81063.0,81062.0,0.000169]
[1741882400126,0.30967548,81063.0,81062.0,0.000169]
[1741882400446,0.32100147,81063.0,81062.0,0.000169]
[1741882400670,0.37984777,81063.0,81062.0,0.000169]
[1741882401038,0.38184777,81063.0,81062.0,0.000169]
[1741882401350,0.38384777,81063.0,81062.0,0.000169]
[1741882401811,0.40317288,81063.0,81062.0,0.000169]
[1741882402369,0.09761588,81063.0,81062.0,0.000169]
[1741882402798,0.10995188,81063.0,81062.0,0.000169]
[1741882402995,0.09761588,81063.0,81062.0,0.012505]
[1741882403161,0.33734777,81063.0,81062.0,0.000169]
[1741882403356,0.30113466,81063.0,81062.0,0.000169]
[1741882404119,0.29913466,81063.0,81062.0,0.000169]
[1741882404354,0.28580867,81063.0,81062.0,0.000169]
[1741882404572,0.28780867,81063.0,81062.0,0.000169]
[1741882404812,0.28880867,81063.0,81062.0,0.000169]
[1741882405010,0.28680867,81063.0,81062.0,0.000169]
[1741882406110,0.28680867,81063.0,81062.0,0.259229]
[1741882406111,0.02675167,81063.0,81062.0,0.259229]
[1741882406305,0.06296933,81063.0,81062.0,0.259229]
[1741882406508,0.06085085,81063.0,81062.0,0.259229]
[1741882407287,0.05885085,81063.0,81062.0,0.259229]
[1741882407499,0.26561678,81063.0,81062.0,0.000169]
[1741882408074,0.00555978,81063.0,81062.0,0.000169]
[1741882409297,0.01789578,81063.0,81062.0,0.000169]
[1741882409495,0.00555978,81063.0,81062.0,0.000169]
[1741882409643,0.00555978,81063.0,81062.0,0.259229]
[1741882409907,0.05885908,81064.0,81063.0,0.012336]
[1741882410035,0.05885908,81064.0,81063.0,0.13203699]
[1741882410232,0.2467,81070.0,81063.0,0.13203699]
[1741882410471,0.2646126,81064.0,81062.0,0.000169]
[1741882410687,0.246704,81069.0,81062.0,0.000169]
[1741882410862,0.00557819,81063.0,81062.0,0.000169]
[1741882411093,0.259042,81068.0,81062.0,0.000169]
[1741882411274,0.259054,81064.0,81062.0,0.000169]
[1741882411678,0.012336,81063.0,81062.0,0.000169]
[1741882411883,0.01791276,81063.0,81062.0,0.000169]
[1741882413005,0.04055852,81063.0,81062.0,0.000169]
[1741882413204,0.04055852,81063.0,81062.0,0.001169]
[1741882414189,0.04055852,81063.0,81062.0,0.002169]
[1741882414397,0.07678194,81063.0,81062.0,0.002169]
[1741882414563,0.19648293,81063.0,81062.0,0.002169]
[1741882414764,0.19648293,81063.0,81062.0,0.001169]
[1741882415294,0.19648293,81063.0,81062.0,0.002169]
[1741882415508,0.19648293,81063.0,81062.0,0.001169]
[1741882415686,0.19648293,81063.0,81062.0,0.000169]
[1741882415883,0.19848293,81063.0,81062.0,0.000169]
[1741882417297,0.49970711,81063.0,81062.0,0.000169]
[1741882417516,0.49848293,81063.0,81062.0,0.000169]
[1741882417710,0.51780813,81063.0,81062.0,0.000169]
[1741882418800,0.48158471,81063.0,81062.0,0.000169]
[1741882419917,0.04954772,81063.0,81062.0,0.000169]
[1741882420146,0.30860472,81063.0,81062.0,0.000169]
[1741882420550,0.04954772,81063.0,81062.0,0.012505]
[1741882420792,0.03022252,81063.0,81062.0,0.012505]
[1741882420994,0.02464576,81063.0,81062.0,1.512505]
[1741882421228,0.02364576,81063.0,81062.0,1.512505]
[1741882421519,0.02364576,81063.0,81062.0,1.78672599]
[1741882421868,0.02264576,81063.0,81062.0,2.09886371]
[1741882422070,0.000338,81076.0,81075.0,0.012334]
[1741882422391,0.000338,81076.0,81075.0,0.67995318]
[1741882422611,0.000338,81076.0,81075.0,0.67871999]
[1741882422808,0.000338,81076.0,81075.0,0.012334]
[1741882423480,0.000338,81076.0,81075.0,0.015334]
[1741882424087,0.01166988,81076.0,81075.0,0.015334]
[1741882424282,0.01166988,81076.0,81075.0,0.003]
[1741882424845,0.01711011,81076.0,81075.0,0.017334]
[1741882425001,0.01166988,81076.0,81075.0,0.017334]
[1741882427972,0.01166988,81076.0,81075.0,0.005]
[1741882428135,0.01166988,81076.0,81075.0,0.017334]
[1741882428337,0.01752327,81076.0,81075.0,0.017334]
[1741882428675,0.01166988,81076.0,81075.0,0.017334]
[1741882429052,0.02400388,81076.0,81075.0,0.005]
[1741882429251,0.02985387,81076.0,81075.0,0.005]
[1741882430335,0.06607527,81076.0,81075.0,0.005]
[1741882431053,0.06607527,81076.0,81075.0,0.003]
[1741882431358,0.48700044,81076.0,81075.0,0.004]
[1741882431565,0.559057,81063.0,81062.0,0.000169]
[1741882431696,0.83323799,81063.0,81062.0,0.000169]
[1741882431897,0.83900836,81063.0,81062.0,0.000169]
[1741882432244,0.85833488,81063.0,81062.0,0.000169]
[1741882432800,0.90588816,81063.0,81062.0,0.000169]
[1741882433593,0.78618717,81063.0,81062.0,0.000169]
[1741882433794,0.76686065,81063.0,81062.0,0.000169]
[1741882434455,0.78948894,81063.0,81062.0,0.000169]
[1741882434833,0.79048894,81063.0,81062.0,0.000169]
[1741882435055,0.79148894,81063.0,81062.0,0.000169]
[1741882435251,0.90541956,81063.0,81062.0,0.000169]
[1741882435628,0.75093956,81063.0,81062.0,0.000169]
[1741882435885,0.07218157,81063.0,81062.0,0.000169]
[1741882436671,0.33123857,81063.0,81062.0,0.000169]
[1741882437176,0.45093956,81063.0,81062.0,0.000169]
[1741882438081,0.47026529,81063.0,81062.0,0.000169]
[1741882438682,0.0915073,81063.0,81062.0,0.000169]
[1741882439089,0.0915073,81063.0,81062.0,0.012505]
[1741882439297,0.0915073,81063.0,81062.0,0.000169]
[1741882439495,0.1038433,81063.0,81062.0,0.000169]
[1741882440074,0.10961266,81063.0,81062.0,0.259229]
[1741882441026,0.10961266,81063.0,81062.0,1.759229]
[1741882441594,0.0915073,81063.0,81062.0,1.759229]
[1741882441810,0.0895073,81063.0,81062.0,1.759229]
[1741882442017,0.0905073,81063.0,81062.0,1.759229]
[1741882442223,0.0915073,81063.0,81062.0,1.759229]
[1741882442458,0.0542859,81063.0,81062.0,1.759229]
[1741882442636,0.0532859,81063.0,81062.0,1.500169]
[1741882442870,0.0532859,81063.0,81062.0,1.502169]
[1741882443064,0.0532859,81063.0,81062.0,1.514505]
[1741882443265,0.0532859,81063.0,81062.0,1.513505]
[1741882443425,0.0532859,81063.0,81062.0,1.512505]
[1741882443965,0.0532859,81063.0,81062.0,1.514505]
[1741882444640,0.0532859,81063.0,81062.0,1.63420599]
[1741882444851,0.03396017,81063.0,81062.0,1.63420599]
[1741882445455,0.01133188,81063.0,81062.0,1.63420599]
[1741882445654,0.01133188,81063.0,81062.0,1.63320599]
[1741882446015,0.03621665,81083.0,81082.0,0.012333]
[1741882446016,6.5e-07,81083.0,81082.0,0.012333]
[1741882446237,5e-08,81090.0,81089.0,0.258974]
[1741882446442,0.03623522,81090.0,81089.0,0.37867499]
[1741882447517,0.03623522,81090.0,81089.0,0.41499914]
[1741882447716,5e-08,81090.0,81089.0,0.41499914]
[1741882448319,5e-08,81090.0,81089.0,0.40296734]
[1741882448987,5e-08,81090.0,81089.0,0.40596734]
[1741882449194,5e-08,81090.0,81089.0,0.40896734]
[1741882449599,5e-08,81090.0,81089.0,0.72350819]
[1741882450185,5e-08,81090.0,81089.0,0.73612985]
[1741882450764,0.0003386,81113.0,81089.0,0.73612985]
[1741882450765,0.0003386,81113.0,81112.0,0.2589]
[1741882450992,0.0003386,81113.0,81112.0,2.03304099]
[1741882451932,0.0003386,81113.0,81112.0,1.65444]
[1741882452157,0.0003386,81113.0,81112.0,1.666768]
[1741882452390,0.2592356,81113.0,81111.0,0.1544]
[1741882452626,0.0003386,81113.0,81111.0,0.1544]
[1741882452852,0.0003386,81113.0,81111.0,0.4133]
[1741882453101,0.0126666,81113.0,81111.0,0.1544]
[1741882453325,0.0126666,81113.0,81112.0,0.015328]
[1741882453326,0.0003386,81113.0,81112.0,0.015328]
[1741882453556,0.0003386,81113.0,81112.0,0.37860099]
[1741882454704,0.0003386,81113.0,81112.0,0.37960099]
[1741882454949,0.0003386,81113.0,81112.0,1.89298203]
[1741882455247,0.0003386,81113.0,81112.0,1.88060099]
[1741882455474,0.0003386,81113.0,81112.0,1.62170099]
[1741882455702,0.0003386,81113.0,81112.0,0.002]
[1741882456165,0.0003386,81113.0,81112.0,0.014328]
[1741882456615,0.0003386,81113.0,81112.0,0.002]
[1741882456827,0.2592356,81113.0,81112.0,0.002]
[1741882457067,0.0003386,81113.0,81112.0,0.014328]
[1741882461119,0.0003386,81113.0,81112.0,1.514328]
[1741882461788,0.0003386,81113.0,81112.0,1.63402899]
[1741882461990,0.0003386,81113.0,81112.0,1.93402899]
[1741882462191,0.0003386,81113.0,81112.0,2.03126984]
[1741882463329,6e-07,81113.0,81112.0,2.03126984]
[1741882463527,7e-07,81118.0,81117.0,0.02686785]
[1741882463729,7e-07,81118.0,81117.0,1.63151824]
[1741882463935,7e-07,81118.0,81117.0,1.63028584]
[1741882464775,7e-07,81118.0,81117.0,3.13028584]
[1741882465571,8e-07,81123.0,81122.0,0.57340985]
[1741882465776,0.0003382,81145.0,81130.0,0.558842]
[1741882465777,4e-07,81131.0,81130.0,0.558842]
[1741882465986,4e-07,81131.0,81130.0,0.69308384]
[1741882466149,4e-07,81131.0,81130.0,1.10928384]
[1741882466994,4e-07,81131.0,81130.0,1.11228384]
[1741882467652,4e-07,81131.0,81130.0,1.11528384]
[1741882468146,4e-07,81131.0,81130.0,1.26956384]
[1741882468476,4e-07,81131.0,81130.0,1.25502299]
[1741882469325,4e-07,81131.0,81130.0,1.27966851]
[1741882469852,4e-07,81131.0,81130.0,1.29420936]
[1741882471061,4e-07,81131.0,81130.0,2.79420936]
[1741882471596,4e-07,81131.0,81130.0,2.77966851]
[1741882471801,4e-07,81131.0,81130.0,2.20568752]
[1741882472002,0.0123254,81131.0,81130.0,0.006]
[1741882472201,4e-07,81131.0,81130.0,0.018325]
[1741882472523,4e-07,81131.0,81130.0,0.006]
[1741882472524,0.2588394,81131.0,81130.0,0.006]
[1741882472725,0.258872,81121.0,81115.0,0.15424]
[1741882472962,0.246541,81123.0,81116.0,0.24656]
[1741882473132,0.246541,81123.0,81115.0,0.166568]
[1741882473133,0.012326,81125.0,81118.0,0.246553]
[1741882473354,0.05876879,81121.0,81119.0,0.012327]
[1741882473524,0.07109579,81121.0,81115.0,0.15424]
[1741882473856,0.07109579,81121.0,81114.0,0.258891]
[1741882474062,0.05876879,81121.0,81120.0,1.004]
[1741882474493,0.07109579,81121.0,81120.0,1.004]
[1741882475132,0.05876879,81121.0,81120.0,1.0]
[1741882475536,0.05876879,81121.0,81120.0,1.258875]
[1741882475877,0.08815194,81121.0,81120.0,1.23107454]
[1741882477653,0.08815194,81121.0,81120.0,0.97253754]
[1741882478233,0.34702394,81121.0,81120.0,0.97253754]
[1741882479874,0.34802394,81121.0,81120.0,0.97253754]
[1741882480871,0.08915194,81121.0,81120.0,0.97253754]
[1741882481084,0.10147894,81121.0,81120.0,0.97253754]
[1741882482829,0.10047894,81121.0,81120.0,0.97253754]
[1741882483039,0.10247894,81121.0,81120.0,0.97253754]
[1741882483236,0.10447894,81121.0,81120.0,0.97253754]
[1741882484624,0.52417993,81121.0,81120.0,0.97253754]
[1741882485832,0.59997993,81121.0,81120.0,0.97253754]
[1741882486806,0.59797993,81121.0,81120.0,5.4e-07]
[1741882487020,0.60297993,81121.0,81120.0,5.4e-07]
[1741882487141,0.60097993,81121.0,81120.0,5.4e-07]
[1741882487344,0.60297993,81121.0,81120.0,5.4e-07]
[1741882487549,0.61752078,81121.0,81120.0,5.4e-07]
[1741882487915,0.6347,81112.0,81084.0,0.1542]
[1741882488153,0.75440099,81112.0,81085.0,0.012332]
[1741882488329,0.75440099,81112.0,81083.0,0.246658]
[1741882488753,0.77371852,81112.0,81083.0,0.246658]
[1741882488982,0.83248731,81112.0,81084.0,0.258987]
[1741882489154,0.83248731,81112.0,81086.0,0.24665]
[1741882489358,0.86187046,81112.0,81086.0,0.24665]
[1741882489559,0.86187046,81112.0,81085.0,0.012332]
[1741882489757,0.86187046,81112.0,81082.0,0.012333]
[1741882490060,0.86587046,81112.0,81082.0,0.012333]
[1741882490214,0.86587046,81112.0,81079.0,0.259003]
[1741882490797,0.86587046,81112.0,81071.0,0.246697]
[1741882490798,0.1244,81086.0,81056.0,0.012337]
[1741882491010,0.18044707,81072.0,81064.0,0.259053]
[1741882491182,0.259014,81077.0,81068.0,0.012335]
[1741882491418,0.259014,81077.0,81058.0,0.246736]
[1741882491419,0.012333,81081.0,81069.0,0.012335]
[1741882491619,0.012333,81081.0,81072.0,0.012334]
[1741882491825,0.0193227,81082.0,81080.0,0.246669]
[1741882492032,0.0482,81099.0,81092.0,0.012331]
[1741882492236,0.11970099,81099.0,81092.0,0.258961]
[1741882492447,0.258938,81101.0,81091.0,0.246635]
[1741882492652,0.01932032,81102.0,81095.0,0.012331]
[1741882492839,0.01255692,81101.0,81100.0,0.258936]
[1741882492983,0.01932032,81102.0,81100.0,0.258936]
[1741882493193,0.01932032,81102.0,81096.0,0.246618]
[1741882493397,0.003,81099.0,81092.0,0.258961]
[1741882493604,0.03165032,81102.0,81094.0,0.258957]
[1741882493605,0.01932032,81102.0,81094.0,0.258957]
[1741882493867,0.02936476,81101.0,81100.0,0.01233]
[1741882495376,0.01129414,81101.0,81100.0,0.01233]
[1741882497691,0.01129414,81101.0,81099.0,0.246612]
[1741882497692,0.01129414,81101.0,81098.0,0.246614]
[1741882497900,0.01129414,81101.0,81100.0,0.01233]
[1741882498314,0.01932032,81102.0,81101.0,0.258936]
[1741882499993,0.05328111,81102.0,81101.0,0.258936]
[1741882500356,0.03396079,81102.0,81101.0,0.258936]
[1741882500549,0.03396079,81102.0,81100.0,0.002]
[1741882500770,0.258939,81100.0,81093.0,0.012331]
[1741882500924,0.012331,81095.0,81087.0,0.246645]
[1741882501155,0.01233,81097.0,81089.0,0.012332]
[1741882501349,0.012331,81096.0,81089.0,0.012332]
[1741882501572,0.03396079,81094.0,81090.0,1.746639]
[1741882501781,0.03396079,81094.0,81093.0,0.012331]
[1741882502359,0.03396079,81094.0,81093.0,0.24663]
[1741882502542,0.03396079,81094.0,81091.0,0.258964]
[1741882502888,0.05210803,81094.0,81090.0,1.5]
[1741882503044,0.08840967,81094.0,81093.0,0.012331]
[1741882503245,0.08840967,81094.0,81093.0,0.013331]
[1741882503669,0.08840967,81094.0,81093.0,0.012331]
[1741882504387,0.07026243,81094.0,81093.0,0.012331]
[1741882504528,0.03396079,81094.0,81093.0,0.012331]
[1741882505899,0.01132104,81094.0,81093.0,0.012331]
[1741882506459,0.01132104,81094.0,81093.0,0.014331]
[1741882507326,0.07027059,81094.0,81093.0,0.012331]
[1741882507528,0.08843105,81094.0,81093.0,0.012331]
[1741882507738,0.08843105,81094.0,81093.0,0.014331]
[1741882507941,0.08843105,81094.0,81093.0,0.13203199]
[1741882508097,0.08843105,81094.0,81093.0,0.20863199]
[1741882508299,0.08843105,81094.0,81093.0,0.21063199]
[1741882508498,0.08843105,81094.0,81093.0,0.13403199]
[1741882508722,0.0294815,81094.0,81093.0,0.014331]
[1741882508923,0.0294815,81094.0,81093.0,0.03845788]
[1741882509144,0.246609,81100.0,81093.0,0.014331]
[1741882509348,0.01233,81103.0,81097.0,0.258945]
[1741882509487,0.01233,81103.0,81094.0,0.012331]
[1741882509488,0.01233,81100.0,81094.0,0.012331]
[1741882509690,0.01233,81101.0,81095.0,0.258955]
[1741882509889,0.01233,81101.0,81096.0,0.012331]
[1741882510092,0.0227277,81099.0,81096.0,0.258949]
[1741882510315,0.0227277,81099.0,81098.0,0.246615]
[1741882510529,0.0227277,81099.0,81096.0,0.258949]
[1741882510747,0.0227277,81099.0,81098.0,0.258945]
[1741882511040,0.0227277,81099.0,81096.0,0.258952]
[1741882511190,0.0227277,81099.0,81098.0,0.01233]
[1741882511394,0.0227277,81099.0,81097.0,0.258945]
[1741882511604,0.0227277,81099.0,81098.0,0.01233]
[1741882512163,0.05227184,81099.0,81098.0,0.01233]
[1741882512743,0.05227184,81099.0,81098.0,0.28619099]
[1741882513145,0.05227184,81099.0,81098.0,1.78619099]
[1741882513493,1e-07,81100.0,81099.0,0.57348285]
[1741882513766,0.01216624,81126.0,81099.0,0.68085384]
[1741882513958,0.01216624,81126.0,81120.0,0.258875]
[1741882514168,0.246529,81127.0,81120.0,0.258875]
[1741882514330,0.18044707,81130.0,81120.0,0.011327]
[1741882514799,0.03655861,81121.0,81120.0,0.011327]
[1741882515431,0.03655861,81121.0,81107.0,0.15416]
[1741882515432,0.246579,81110.0,81107.0,0.15416]
[1741882515645,0.012328,81116.0,81107.0,0.15416]
[1741882515646,0.246563,81115.0,81111.0,0.258902]
[1741882515885,0.012328,81116.0,81111.0,0.258902]
[1741882516075,0.012327,81117.0,81112.0,0.24657]
[1741882516367,0.03638961,81114.0,81112.0,0.258898]
[1741882516532,0.03638961,81114.0,81113.0,0.012328]
[1741882517136,0.05570114,81114.0,81113.0,0.012328]
[1741882517960,0.05570114,81114.0,81109.0,0.012329]
[1741882517961,0.246598,81104.0,81100.0,1.0]
[1741882518164,0.01233,81101.0,81100.0,1.0]
[1741882518461,0.0464,81110.0,81105.0,0.246592]
[1741882518674,0.03638961,81114.0,81105.0,0.012329]
[1741882518874,0.012329,81106.0,81100.0,1.01233]
[1741882519079,0.03164319,81109.0,81104.0,0.258925]
[1741882519282,0.258913,81108.0,81102.0,0.258932]
[1741882519523,0.012329,81107.0,81102.0,0.01233]
[1741882519670,0.012329,81107.0,81100.0,1.258938]
[1741882519671,0.03638961,81105.0,81100.0,1.0]
[1741882519868,0.01233,81101.0,81100.0,1.0]
[1741882520076,0.258936,81101.0,81100.0,1.0]
[1741882520278,0.80133699,81101.0,81100.0,1.0]
[1741882520497,0.81340975,81101.0,81100.0,1.0]
[1741882520919,0.246706,81068.0,81063.0,0.15412]
[1741882521118,0.012335,81069.0,81062.0,1.500169]
[1741882521119,0.00122418,81067.0,81062.0,1.500169]
[1741882521343,0.0758,81076.0,81063.0,0.259057]
[1741882521344,0.259022,81074.0,81063.0,0.259057]
[1741882521646,0.259022,81074.0,81063.0,0.246721]
[1741882521647,0.01932224,81066.0,81063.0,0.246721]
[1741882521846,0.012336,81063.0,81062.0,1.500169]
[1741882522017,0.012336,81063.0,81062.0,0.000169]
[1741882522401,0.02616931,81063.0,81062.0,0.000169]
[1741882522609,0.012336,81063.0,81062.0,0.000169]
[1741882522796,0.03638961,81065.0,81062.0,0.000169]
[1741882522991,0.04872461,81065.0,81062.0,0.000169]
[1741882523198,0.012336,81063.0,81062.0,0.000169]
[1741882523394,0.04872461,81065.0,81062.0,0.000169]
[1741882523603,0.03638961,81065.0,81058.0,0.259072]
[1741882523802,0.012336,81057.0,81048.0,0.012338]
[1741882523996,0.012336,81063.0,81052.0,0.012337]
[1741882524224,0.04872561,81063.0,81055.0,0.012337]
[1741882524418,0.01932559,81061.0,81055.0,0.012337]
[1741882524847,0.246759,81051.0,81038.0,0.000338]
[1741882525051,0.012338,81048.0,81038.0,0.259473]
[1741882525214,0.012336,81057.0,81046.0,0.259111]
[1741882525413,0.13203699,81057.0,81048.0,0.259105]
[1741882525632,0.13203699,81057.0,81050.0,0.24676]
[1741882525890,0.012337,81055.0,81048.0,0.259105]
[1741882526134,0.02950351,81056.0,81053.0,0.012337]
[1741882526262,0.02950351,81056.0,81055.0,0.012337]
[1741882527124,0.02950351,81056.0,81045.0,0.012338]
[1741882527327,0.01132456,81056.0,81052.0,0.012337]
[1741882527483,0.01132456,81056.0,81053.0,0.246752]
[1741882527665,0.03399252,81056.0,81053.0,0.246752]
[1741882527866,0.03399252,81056.0,81049.0,0.259102]
[1741882528068,0.03399252,81056.0,81055.0,0.246746]
[1741882528273,0.03399252,81056.0,81053.0,0.24675]
[1741882528500,0.03399252,81056.0,81050.0,0.012338]
[1741882528697,0.03399252,81056.0,81051.0,0.259095]
[1741882529338,0.03399252,81055.0,81054.0,0.012337]
[1741882529537,0.03399252,81055.0,81020.0,0.3001691]
[1741882529745,0.012338,81049.0,81040.0,0.012339]
[1741882529982,0.012337,81053.0,81046.0,0.012338]
[1741882530110,0.03166477,81053.0,81046.0,0.012338]
[1741882530309,0.012337,81052.0,81045.0,0.246775]
[1741882530687,0.246758,81051.0,81044.0,0.259114]
[1741882530804,0.012337,81052.0,81044.0,0.259114]
[1741882531040,0.012337,81052.0,81042.0,0.012339]
[1741882531041,0.246764,81049.0,81045.0,1.5]
[1741882531250,0.012338,81050.0,81045.0,1.5]
[1741882531475,0.01132456,81051.0,81045.0,1.5]
[1741882531675,0.25808256,81051.0,81045.0,1.746776]
[1741882531869,0.02258888,81048.0,81045.0,1.5]
[1741882532073,0.26935888,81048.0,81045.0,1.5]
[1741882532273,0.02258888,81048.0,81042.0,0.012339]
[1741882532534,0.02258888,81048.0,81046.0,0.012338]
[1741882532535,0.00581455,81047.0,81046.0,0.012338]
[1741882532838,0.02258888,81048.0,81046.0,0.012338]
[1741882533040,0.01132456,81047.0,81046.0,0.259111]
[1741882533243,0.03974008,81047.0,81046.0,0.259111]
[1741882533416,0.03391344,81047.0,81046.0,0.259111]
[1741882534402,0.02258888,81047.0,81046.0,0.259111]
[1741882534601,0.259061,81062.0,81054.0,0.246748]
[1741882534778,0.26489381,81061.0,81054.0,0.259085]
[1741882535120,0.26489381,81061.0,81053.0,0.012337]
[1741882535121,0.246733,81060.0,81053.0,0.259086]
[1741882535419,0.246733,81060.0,81054.0,0.259083]
[1741882535629,0.00582781,81061.0,81055.0,0.012337]
[1741882535782,0.00582781,81061.0,81060.0,0.012336]
[1741882536004,0.002,81062.0,81061.0,0.259063]
[1741882536186,0.3,81077.0,81072.0,0.259025]
[1741882536417,0.00583596,81074.0,81072.0,0.258025]
[1741882536629,0.00583596,81074.0,81073.0,0.012334]
[1741882536987,0.01932413,81075.0,81074.0,0.258022]
[1741882537211,1.3e-07,81075.0,81074.0,0.412222]
[1741882537427,0.0496,81111.0,81105.0,0.012329]
[1741882537585,0.01205125,81109.0,81105.0,0.258922]
[1741882537792,0.11474865,81106.0,81105.0,0.254922]
[1741882537988,0.11474865,81106.0,81094.0,0.246624]
[1741882537989,0.246606,81101.0,81094.0,0.246624]
[1741882538189,0.01230688,81100.0,81093.0,0.246629]
[1741882538512,0.01230688,81100.0,81097.0,0.258948]
[1741882538710,0.01230688,81100.0,81098.0,0.01233]
[1741882539110,0.01233,81098.0,81092.0,0.400832]
[1741882539450,0.001,81100.0,81095.0,0.246624]
[1741882539656,0.001,81100.0,81096.0,0.246618]
[1741882539808,0.258952,81096.0,81089.0,0.246641]
[1741882540013,0.258952,81096.0,81091.0,0.246636]
[1741882540216,0.01230564,81099.0,81094.0,0.012331]
[1741882540435,0.01230564,81099.0,81098.0,0.01233]
[1741882540809,0.10662886,81106.0,81100.0,0.01233]
[1741882541009,0.10662886,81106.0,81096.0,0.001]
[1741882541010,0.01243446,81099.0,81096.0,0.001]
[1741882541219,0.012331,81094.0,81087.0,0.012332]
[1741882541424,0.3,81092.0,81072.0,0.15416]
[1741882541619,0.246688,81074.0,81067.0,0.012335]
[1741882541817,0.259022,81074.0,81067.0,0.259041]
[1741882542083,0.27194357,81073.0,81067.0,0.259041]
[1741882542280,0.02421994,81073.0,81062.0,0.15416]
[1741882542476,0.02421994,81073.0,81049.0,0.012338]
[1741882542477,0.259083,81055.0,81049.0,0.012338]
[1741882542683,0.012337,81053.0,81045.0,0.259113]
[1741882542833,0.012337,81054.0,81038.0,0.783538]
[1741882542834,0.012338,81045.0,81038.0,0.783538]
[1741882543039,0.30521633,81050.0,81041.0,0.246788]
[1741882543240,0.11970099,81052.0,81048.0,0.012338]
[1741882543447,0.01284501,81049.0,81048.0,0.012338]
[1741882543699,0.11970099,81052.0,81049.0,0.012338]
[1741882543889,0.11970099,81052.0,81050.0,0.012338]
[1741882544027,0.01275581,81051.0,81050.0,0.259099]
[1741882544225,0.11970099,81052.0,81048.0,0.246765]
[1741882544431,0.01275752,81051.0,81048.0,0.259103]
[1741882544748,0.259105,81048.0,81038.0,1.042672]
[1741882544949,0.07154102,81051.0,81047.0,0.012338]
[1741882545156,0.07154102,81051.0,81050.0,0.012338]
[1741882545526,0.0587835,81051.0,81050.0,0.259099]
[1741882546618,0.0587835,81051.0,81050.0,1.759099]
[1741882546792,0.0587835,81051.0,81050.0,1.762099]
[1741882546997,0.08823152,81051.0,81050.0,1.764099]
[1741882547963,0.08823152,81051.0,81050.0,1.517338]
[1741882548163,0.08823152,81051.0,81050.0,1.505]
[1741882548468,0.11527279,81051.0,81050.0,0.005]
[1741882548690,0.10293579,81051.0,81050.0,0.005]
[1741882549010,0.11839365,81051.0,81050.0,0.003]
[1741882549217,0.11839365,81051.0,81050.0,0.002]
[1741882549445,0.25043164,81051.0,81050.0,0.002]
[1741882549835,0.259099,81050.0,81042.0,0.012339]
[1741882550012,0.259099,81050.0,81030.0,0.02502241]
[1741882550013,0.259121,81043.0,81040.0,1.0003382]
[1741882550215,0.246788,81041.0,81040.0,1.0003382]
[1741882550398,0.67882799,81041.0,81040.0,1.0003382]
[1741882550595,0.95296491,81041.0,81040.0,0.2504382]
[1741882550794,0.3,81030.0,81019.0,0.01268]
[1741882551075,0.43204199,81030.0,81019.0,0.000338]
[1741882551608,0.41970099,81030.0,81029.0,0.012679]
[1741882551795,0.41970099,81030.0,81029.0,0.000338]
[1741882551994,0.21189614,81041.0,81034.0,0.246809]
[1741882552158,0.01234,81037.0,81030.0,0.259163]
[1741882552353,0.13203999,81039.0,81032.0,0.01234]
[1741882552354,0.41970099,81036.0,81032.0,0.01234]
[1741882552539,0.11970099,81036.0,81034.0,0.246809]
[1741882552741,0.03717688,81036.0,81035.0,0.01234]
[1741882552939,0.11141824,81036.0,81035.0,0.01234]
[1741882553141,0.11141824,81036.0,81035.0,0.01134]
[1741882553614,0.005,81040.0,81039.0,0.256133]
[1741882553615,2.4e-07,81040.0,81039.0,0.256133]
[1741882553749,2.4e-07,81040.0,81039.0,0.254133]
[1741882554170,2.4e-07,81040.0,81035.0,0.37784399]
[1741882554171,0.00122418,81061.0,81057.0,0.246736]
[1741882554368,0.01233635,81062.0,81057.0,0.246736]
[1741882554567,0.13203734,81062.0,81057.0,0.246736]
[1741882554775,0.01933076,81063.0,81062.0,0.25906]
[1741882555302,0.01933076,81063.0,81060.0,1.74673]
[1741882555502,0.012337,81052.0,81038.0,0.246795]
[1741882555652,0.012336,81057.0,81051.0,0.012337]
[1741882555855,0.11970099,81056.0,81051.0,0.012337]
[1741882556055,0.12572038,81056.0,81052.0,0.259092]
[1741882556321,0.02534684,81056.0,81055.0,0.012337]
[1741882556612,0.02134806,81056.0,81055.0,0.012337]
[1741882557407,0.00202061,81056.0,81055.0,0.02463014]
[1741882557606,0.00202061,81056.0,81055.0,0.012337]
[1741882558830,0.00202061,81056.0,81054.0,0.259085]
[1741882559122,0.00202061,81056.0,81055.0,0.006]
[1741882559260,0.00202061,81056.0,81055.0,0.008]
[1741882559604,0.00202061,81056.0,81055.0,0.012337]
[1741882559844,0.00202061,81056.0,81055.0,0.016337]
[1741882560021,0.00202061,81056.0,81055.0,0.020337]
[1741882560536,0.00202061,81056.0,81055.0,0.008]
[1741882560690,0.3808006,81056.0,81055.0,0.008]
[1741882560892,0.3868322,81056.0,81055.0,0.008]
[1741882561948,0.6868322,81056.0,81055.0,0.008]
[1741882562239,0.259111,81047.0,81045.0,0.78348]
[1741882562435,0.012338,81050.0,81044.0,0.012338]
[1741882562656,0.41970099,81050.0,81045.0,0.246776]
[1741882562900,0.0193299,81049.0,81048.0,0.012338]
[1741882563292,0.0193299,81049.0,81044.0,0.012338]
[1741882563579,0.012338,81047.0,81043.0,0.000338]